bitfinex-derivatives/quotes_BTCF0:USTF0_20250528
["timestamp","ask_amount","ask_price","bid_price","bid_amount"]
[1748390816940,1.43763185,108880.0,108870.0,0.15188307]
[1748390818149,1.43563185,108880.0,108870.0,0.15188307]
[1748390818355,1.43363185,108880.0,108870.0,0.15088307]
[1748390819047,1.43363185,108880.0,108870.0,0.11878307]
[1748390820050,1.43363185,108880.0,108870.0,0.08808307]
[1748390820639,1.48829454,108880.0,108870.0,0.05518307]
[1748390820847,1.48829454,108880.0,108870.0,0.01448209]
[1748390821047,1.48829454,108880.0,108870.0,0.01460209]
[1748390822351,1.48829192,108880.0,108870.0,0.01460209]
[1748390823359,1.48829192,108880.0,108870.0,0.05518307]
[1748390823852,1.48829192,108880.0,108860.0,0.6658732]
[1748390824063,0.6079173,108870.0,108860.0,0.90927993]
[1748390824352,0.72514144,108870.0,108860.0,0.4932332]
[1748390824555,0.72514144,108870.0,108860.0,0.9137532]
[1748390825260,0.72614144,108870.0,108860.0,0.9137532]
[1748390825565,0.69334144,108870.0,108860.0,0.9137532]
[1748390826454,0.33254144,108870.0,108860.0,0.9137532]
[1748390827145,0.33254144,108870.0,108860.0,0.9429532]
[1748390827558,0.33354144,108870.0,108860.0,0.9439532]
[1748390827955,0.69434144,108870.0,108860.0,0.9439532]
[1748390828259,0.36464144,108870.0,108860.0,0.9439532]
[1748390830761,0.3279173,108870.0,108860.0,0.9439532]
[1748390831058,0.36497055,108870.0,108860.0,0.9439532]
[1748390834670,0.67577055,108870.0,108860.0,1.13926394]
[1748390834870,0.68577055,108870.0,108860.0,1.04574464]
[1748390835078,0.68577217,108870.0,108860.0,1.04574494]
[1748390835871,0.98577217,108870.0,108860.0,1.04574494]
[1748390836182,0.98577217,108870.0,108860.0,0.9440332]
[1748390839286,0.98577217,108870.0,108860.0,0.99792034]
[1748390839488,0.98577834,108870.0,108860.0,1.00240243]
[1748390840480,0.98577834,108870.0,108860.0,1.05023262]
[1748390840678,0.98577834,108870.0,108860.0,0.94851529]
[1748390841281,0.98577834,108870.0,108860.0,1.00240243]
[1748390841772,0.98577834,108870.0,108860.0,1.0502328]
[1748390843585,0.98577834,108870.0,108860.0,1.0497528]
[1748390843780,0.98577966,108870.0,108860.0,1.0497536]
[1748390844381,1.40124235,108870.0,108860.0,0.14560209]
[1748390844580,1.44404408,108870.0,108860.0,0.18618546]
[1748390844974,1.44404408,108870.0,108860.0,0.18606546]
[1748390845172,1.44404408,108870.0,108860.0,0.18618546]
[1748390845778,1.44304408,108870.0,108860.0,0.18618546]
[1748390845978,1.44504408,108870.0,108860.0,0.18618546]
[1748390846180,1.44404408,108870.0,108860.0,0.14460209]
[1748390846494,1.44604408,108870.0,108860.0,0.14460209]
[1748390847884,1.44597685,108870.0,108860.0,0.14460209]
[1748390848984,1.13597685,108870.0,108860.0,0.00460209]
[1748390849192,1.46597685,108870.0,108860.0,0.10460209]
[1748390849488,1.88629685,108870.0,108860.0,0.10448209]
[1748390850077,1.88629685,108870.0,108860.0,0.10460209]
[1748390850280,1.88629685,108870.0,108860.0,0.10448209]
[1748390850590,1.88629685,108870.0,108860.0,0.10460209]
[1748390853691,1.98401685,108870.0,108860.0,0.10460209]
[1748390853880,1.98401685,108870.0,108860.0,0.11739219]
[1748390854490,1.56369685,108870.0,108860.0,0.11739219]
[1748390854685,1.98393685,108870.0,108860.0,0.11739219]
[1748390855189,1.98393685,108870.0,108860.0,0.1174038]
[1748390855389,1.98393685,108870.0,108860.0,0.10460209]
[1748390855595,1.98393685,108870.0,108860.0,0.11740033]
[1748390856089,1.98393685,108870.0,108860.0,0.10460209]
[1748390856288,1.98393685,108870.0,108860.0,0.11740051]
[1748390856687,1.98393685,108870.0,108860.0,0.10460209]
[1748390856887,1.98393685,108870.0,108860.0,0.11740139]
[1748390857395,1.98393685,108870.0,108860.0,0.11740555]
[1748390858192,1.98393685,108870.0,108860.0,0.1174052]
[1748390858586,1.98393685,108870.0,108860.0,0.11740903]
[1748390858789,1.98393685,108870.0,108860.0,0.11740904]
[1748390859286,1.98393685,108870.0,108860.0,0.11739989]
[1748390859481,1.98393685,108870.0,108860.0,0.10460209]
[1748390859686,1.98393685,108870.0,108860.0,0.11739667]
[1748390859888,1.98393685,108870.0,108860.0,0.1173996]
[1748390860499,1.98393685,108870.0,108860.0,0.11739967]
[1748390860890,1.98393685,108870.0,108860.0,0.11740235]
[1748390861897,1.98393685,108870.0,108860.0,0.11742288]
[1748390862592,1.98393685,108870.0,108860.0,0.11742523]
[1748390862795,1.98393685,108870.0,108860.0,0.11742522]
[1748390863197,1.98393685,108870.0,108860.0,0.11742553]
[1748390863593,1.98393685,108870.0,108860.0,0.1174255]
[1748390863989,1.98393685,108870.0,108860.0,0.11742754]
[1748390864395,2.04101045,108870.0,108860.0,0.11742754]
[1748390864592,0.1836343,108860.0,108850.0,0.00275596]
[1748390864793,0.23831389,108850.0,108840.0,3e-08]
[1748390864992,0.1836681,108840.0,108830.0,0.00091882]
[1748390865294,1.15382501,108840.0,108830.0,0.03091882]
[1748390865703,1.15382501,108840.0,108830.0,0.03103882]
[1748390867798,1.11406156,108840.0,108830.0,0.03103882]
[1748390868399,1.15682501,108840.0,108830.0,0.03103882]
[1748390868605,1.15982501,108840.0,108830.0,0.03103882]
[1748390869198,1.1260256,108840.0,108830.0,0.03103882]
[1748390869715,1.12628727,108840.0,108830.0,0.03103882]
[1748390870098,1.12628727,108840.0,108830.0,0.03552091]
[1748390872498,1.12626781,108840.0,108830.0,0.03552091]
[1748390874099,1.12626518,108840.0,108830.0,0.03552091]
[1748390874802,1.12626518,108840.0,108830.0,0.24840591]
[1748390875103,0.71993214,108840.0,108830.0,0.31190591]
[1748390875406,0.006,108840.0,108830.0,1.16298591]
[1748390875612,0.00151638,108850.0,108840.0,0.1836681]
[1748390875908,0.0426549,108870.0,108860.0,0.1836343]
[1748390876095,0.21768144,108880.0,108870.0,0.1836174]
[1748390876298,0.43767884,108880.0,108870.0,0.3654174]
[1748390876498,0.43767884,108880.0,108870.0,0.3963174]
[1748390878512,0.43867884,108880.0,108870.0,0.3993174]
[1748390879009,0.43967884,108880.0,108870.0,0.4023174]
[1748390879603,0.18697884,108880.0,108870.0,0.4023174]
[1748390880311,0.19697884,108880.0,108870.0,0.4023174]
[1748390883904,0.22697884,108880.0,108870.0,0.4023174]
[1748390885220,0.22697884,108880.0,108870.0,0.40679949]
[1748390885417,0.22697884,108880.0,108870.0,0.64179949]
[1748390886309,0.22697884,108880.0,108870.0,1.06275949]
[1748390889515,0.21697884,108880.0,108870.0,1.06275949]
[1748390889912,0.21697884,108880.0,108870.0,0.64179949]
[1748390890112,0.21697884,108880.0,108870.0,1.06271949]
[1748390891316,0.24987884,108880.0,108870.0,0.64179949]
[1748390891515,0.97534153,108880.0,108870.0,0.54910019]
[1748390891721,0.97534153,108880.0,108870.0,0.54910009]
[1748390891915,0.97534153,108880.0,108870.0,0.54922009]
[1748390893920,0.67534153,108880.0,108870.0,0.54922009]
[1748390896424,0.61067884,108880.0,108870.0,0.54922009]
[1748390896619,0.61067884,108880.0,108870.0,0.63972009]
[1748390898616,0.06627834,108880.0,108870.0,1.00052009]
[1748390898816,0.21697954,108880.0,108870.0,1.00052009]
[1748390900016,0.24867954,108880.0,108870.0,1.00052009]
[1748390902328,0.24867954,108880.0,108870.0,1.04083647]
[1748390904529,0.24867954,108880.0,108870.0,1.09083647]
[1748390905226,0.24867954,108880.0,108870.0,1.15220255]
[1748390906533,0.24867954,108880.0,108870.0,1.15220222]
[1748390907530,0.06507834,108880.0,108870.0,1.15220222]
[1748390907732,0.032,108880.0,108870.0,1.09236809]
[1748390907931,0.032,108880.0,108870.0,1.52993939]
[1748390908131,0.032,108880.0,108870.0,1.57773438]
[1748390908527,0.032,108880.0,108870.0,1.48588638]
[1748390910638,0.032,108880.0,108870.0,1.12508638]
[1748390910831,0.032,108880.0,108870.0,1.48583839]
[1748390912032,0.032,108880.0,108870.0,1.90643839]
[1748390913839,0.032,108880.0,108870.0,1.79112009]
[1748390914342,0.032,108880.0,108870.0,1.90643839]
[1748390915238,0.03253752,108890.0,108880.0,0.1836013]
[1748390915426,0.21602202,108890.0,108880.0,1.18587829]
[1748390915734,0.03243752,108890.0,108880.0,1.18587829]
[1748390916326,0.03343752,108890.0,108880.0,1.18587829]
[1748390916530,0.21702192,108890.0,108880.0,1.18587829]
[1748390916832,0.03343752,108890.0,108880.0,1.18587829]
[1748390917840,0.03343752,108890.0,108880.0,1.42187829]
[1748390918536,0.03243752,108890.0,108880.0,1.42187829]
[1748390918835,0.03243752,108890.0,108880.0,1.42387829]
[1748390919741,0.1395708,108910.0,108900.0,0.1835675]
[1748390919742,0.0019,108910.0,108900.0,0.1835675]
[1748390919937,0.0658,108910.0,108900.0,1.50955218]
[1748390920239,0.0658,108910.0,108900.0,1.57955218]
[1748390920536,0.2493507,108910.0,108900.0,0.98375225]
[1748390920948,0.2513507,108910.0,108900.0,1.34455225]
[1748390921143,0.2818507,108910.0,108900.0,1.37375225]
[1748390921635,0.2828507,108910.0,108900.0,1.37375225]
[1748390923736,0.2828507,108910.0,108900.0,1.60875225]
[1748390927652,0.2828507,108910.0,108900.0,1.24771225]
[1748390927846,0.2828507,108910.0,108900.0,1.54811225]
[1748390929252,0.2828507,108910.0,108900.0,0.76711225]
[1748390929448,0.2828507,108910.0,108900.0,1.18735225]
[1748390929653,0.2828507,108910.0,108900.0,1.31315225]
[1748390929948,0.33751339,108910.0,108900.0,0.88251225]
[1748390930354,0.33751339,108910.0,108900.0,0.88239225]
[1748390930555,0.33751339,108910.0,108900.0,0.88251225]
[1748390931059,0.33751339,108910.0,108900.0,0.88699434]
[1748390932458,0.33751339,108910.0,108900.0,0.88647434]
[1748390932760,0.33751339,108910.0,108900.0,0.18506684]
[1748390932948,0.33751339,108910.0,108900.0,0.46631444]
[1748390933150,0.79831339,108910.0,108900.0,0.14460209]
[1748390933356,1.03831339,108910.0,108900.0,0.14460209]
[1748390933965,1.03831339,108910.0,108900.0,0.14448209]
[1748390934268,1.03831339,108910.0,108900.0,0.14460209]
[1748390934467,1.03831339,108910.0,108900.0,0.14448209]
[1748390934667,1.03831339,108910.0,108900.0,0.14460209]
[1748390934869,1.03831339,108910.0,108900.0,0.32816979]
[1748390936268,1.07509116,108910.0,108900.0,0.32816979]
[1748390937371,0.85509116,108910.0,108900.0,0.32816979]
[1748390938169,0.81831339,108910.0,108900.0,0.32816979]
[1748390938573,0.78831339,108910.0,108900.0,0.32816979]
[1748390939071,1.04831339,108910.0,108900.0,0.32816979]
[1748390939273,0.69831339,108910.0,108900.0,0.14460209]
[1748390939573,1.00831339,108910.0,108900.0,0.32816959]
[1748390939773,0.69831339,108910.0,108900.0,0.32816959]
[1748390939971,1.02831339,108910.0,108900.0,0.32816959]
[1748390940174,1.03831339,108910.0,108900.0,0.32816959]
[1748390942478,1.05507478,108910.0,108900.0,0.36867106]
[1748390942871,0.73507478,108910.0,108900.0,0.36867106]
[1748390943276,0.73507914,108910.0,108900.0,0.36867106]
[1748390943774,0.68041645,108910.0,108900.0,0.36867106]
[1748390944078,0.37427914,108910.0,108900.0,0.43867106]
[1748390944378,0.33751339,108910.0,108900.0,0.53287106]
[1748390944876,0.0993,108910.0,108900.0,0.53287106]
[1748390945076,0.0993,108910.0,108900.0,0.54015613]
[1748390945278,0.2828507,108910.0,108900.0,0.59416354]
[1748390945581,0.2828507,108910.0,108900.0,0.546377]
[1748390948884,0.2828507,108910.0,108900.0,0.966937]
[1748390950083,0.2828507,108910.0,108900.0,1.0147437]
[1748390950584,0.2828507,108910.0,108900.0,1.2497437]
[1748390952501,0.2828507,108910.0,108900.0,1.201937]
[1748390958891,0.2828507,108910.0,108900.0,1.201817]
[1748390959092,0.2828507,108910.0,108900.0,1.201937]
[1748390959491,0.2828507,108910.0,108900.0,1.24975077]
[1748390961293,0.2828507,108910.0,108900.0,1.24975017]
[1748390961593,0.33751339,108910.0,108900.0,0.73499017]
[1748390961791,0.69751339,108910.0,108900.0,0.66487017]
[1748390962094,0.69751339,108910.0,108900.0,1.18299017]
[1748390962393,0.69751339,108910.0,108900.0,0.94787017]
[1748390962594,0.69751339,108910.0,108900.0,0.94799017]
[1748390965498,0.69751339,108910.0,108900.0,0.94800544]
[1748390965699,1.05831339,108910.0,108900.0,0.94800544]
[1748390966088,0.69751339,108910.0,108900.0,0.94800544]
[1748390966997,0.44751339,108910.0,108900.0,0.94800544]
[1748390967299,0.44751339,108910.0,108900.0,1.00990544]
[1748390969803,0.44751339,108910.0,108900.0,1.0099084]
[1748390970402,0.44751339,108910.0,108900.0,1.3707084]
[1748390972006,0.44751339,108910.0,108900.0,1.46420896]
[1748390972902,0.44751339,108910.0,108900.0,1.10340896]
[1748390973205,0.44751339,108910.0,108900.0,1.31545836]
[1748390973707,0.44751339,108910.0,108900.0,1.31994045]
[1748390973917,0.44751339,108910.0,108900.0,0.89692045]
[1748390974100,0.44751339,108910.0,108900.0,0.8969375]
[1748390974299,0.44751339,108910.0,108900.0,1.2577375]
[1748390974900,0.44751339,108910.0,108900.0,0.3792575]
[1748390975092,1.03831339,108910.0,108900.0,0.4769375]
[1748390975297,1.03831339,108910.0,108900.0,0.8970175]
[1748390975501,0.67751339,108910.0,108900.0,0.8970175]
[1748390975898,1.07514395,108910.0,108900.0,0.20995851]
[1748390976103,1.11796692,108910.0,108900.0,0.47521145]
[1748390976399,1.11796692,108910.0,108900.0,0.65865895]
[1748390976708,1.11796692,108910.0,108900.0,0.65877895]
[1748390977608,1.07514395,108910.0,108900.0,0.65877895]
[1748390978501,1.07511738,108910.0,108900.0,0.47521145]
[1748390978806,1.07511738,108910.0,108900.0,0.65877895]
[1748390979007,1.07511738,108910.0,108900.0,0.05517145]
[1748390979208,1.07511738,108910.0,108900.0,0.65869895]
[1748390979405,1.07511738,108910.0,108900.0,0.65857895]
[1748390979613,1.07511738,108910.0,108900.0,0.65869895]
[1748390980208,1.07511738,108910.0,108900.0,0.47513145]
[1748390980902,1.07511738,108910.0,108900.0,0.65869905]
[1748390982616,0.50431738,108910.0,108900.0,1.01949905]
[1748390982816,0.50429766,108910.0,108900.0,1.17099609]
[1748390983407,0.50429766,108910.0,108900.0,1.07729609]
[1748390983819,0.50429766,108910.0,108900.0,0.66869905]
[1748390990611,0.37429766,108910.0,108900.0,0.66869905]
[1748390990818,0.68429766,108910.0,108900.0,0.66869905]
[1748390991218,0.68429766,108910.0,108900.0,0.24873905]
[1748390991420,0.68429766,108910.0,108900.0,0.66873905]
[1748390991620,0.68429467,108910.0,108900.0,0.66873905]
[1748390993918,0.39429467,108910.0,108900.0,0.66873905]
[1748390994221,0.37429467,108910.0,108900.0,0.66873905]
[1748390994418,0.37429467,108910.0,108900.0,0.76073905]
[1748390995312,0.37429857,108910.0,108900.0,1.12153905]
[1748390995512,0.34359857,108910.0,108900.0,1.12153905]
[1748390995712,0.34359857,108910.0,108900.0,1.1693348]
[1748390995918,0.30681339,108910.0,108900.0,1.1693348]
[1748390996120,0.33931339,108910.0,108900.0,1.1693348]
[1748390996419,0.33931339,108910.0,108900.0,0.8085348]
[1748390996625,0.33931339,108910.0,108900.0,0.8084948]
[1748390996925,0.37610117,108910.0,108900.0,0.76069905]
[1748391000321,0.37610542,108910.0,108900.0,0.76069905]
[1748391001716,0.33931339,108910.0,108900.0,0.76069905]
[1748391002017,0.37610469,108910.0,108900.0,0.76069905]
[1748391002424,0.37610469,108910.0,108900.0,0.72012969]
[1748391002828,0.37610742,108910.0,108900.0,0.76066517]
[1748391003529,0.37610742,108910.0,108900.0,0.72012969]
[1748391005033,0.37610742,108910.0,108900.0,0.81768969]
[1748391007133,0.37611876,108910.0,108900.0,0.81768969]
[1748391007326,0.37611876,108910.0,108900.0,0.86551929]
[1748391007526,0.37611876,108910.0,108900.0,0.9195267]
[1748391007926,0.37611876,108910.0,108900.0,0.8275267]
[1748391008222,0.68611876,108910.0,108900.0,0.8275267]
[1748391008428,0.68611876,108910.0,108900.0,0.8274067]
[1748391008635,0.68611876,108910.0,108900.0,0.8275267]
[1748391009332,0.68611876,108910.0,108900.0,0.7796971]
[1748391009535,0.68611876,108910.0,108900.0,0.71568969]
[1748391010345,1.04691876,108910.0,108900.0,0.61812969]
[1748391010545,1.04691876,108910.0,108900.0,0.65868134]
[1748391011438,1.04693574,108910.0,108900.0,0.65868134]
[1748391011745,0.05466269,108900.0,108880.0,0.00137768]
[1748391012045,1.22189687,108890.0,108880.0,0.13137765]
[1748391012233,1.57111244,108890.0,108880.0,0.13137765]
[1748391012432,1.7485177,108890.0,108880.0,0.13137765]
[1748391012645,1.70572381,108890.0,108880.0,0.13149765]
[1748391013042,1.70572381,108890.0,108880.0,0.13437765]
[1748391013241,1.70672381,108890.0,108880.0,0.13449765]
[1748391013441,1.70672381,108890.0,108880.0,0.13437765]
[1748391013653,1.55684031,108890.0,108880.0,0.13249765]
[1748391013849,1.55784031,108890.0,108880.0,0.13249765]
[1748391014254,0.1836182,108870.0,108860.0,0.8137078]
[1748391014454,0.79664089,108870.0,108860.0,0.9437078]
[1748391014653,0.89274089,108870.0,108860.0,0.9437078]
[1748391015152,0.89274089,108870.0,108860.0,0.9770078]
[1748391015350,0.89274089,108870.0,108860.0,0.5570478]
[1748391015551,0.89274089,108870.0,108860.0,0.9770478]
[1748391015941,0.89274089,108870.0,108860.0,0.9800478]
[1748391016148,0.90305365,108870.0,108860.0,0.9800478]
[1748391016959,0.90305365,108870.0,108860.0,0.4682304]
[1748391017257,0.90305365,108870.0,108860.0,0.7965304]
[1748391017258,0.89474089,108870.0,108860.0,0.7965304]
[1748391017457,0.89474089,108870.0,108860.0,0.3766504]
[1748391017653,0.79474089,108870.0,108860.0,0.330755]
[1748391017858,1.17474089,108870.0,108860.0,0.750635]
[1748391018059,1.17474089,108870.0,108860.0,0.750755]
[1748391018451,0.98474089,108870.0,108860.0,0.750755]
[1748391019462,0.99369813,108870.0,108860.0,0.75523709]
[1748391020264,0.98474089,108870.0,108860.0,0.75523709]
[1748391029170,0.98474089,108870.0,108860.0,0.33523709]
[1748391029369,0.98474089,108870.0,108860.0,0.75531709]
[1748391029966,0.98474089,108870.0,108860.0,0.15160209]
[1748391030265,1.80304139,108870.0,108860.0,0.09205029]
[1748391030569,1.8948974,108870.0,108860.0,0.01160209]
[1748391030961,1.8948974,108870.0,108860.0,0.01148209]
[1748391031289,1.8948974,108870.0,108860.0,0.01160209]
[1748391031958,1.8948974,108870.0,108860.0,0.01148209]
[1748391032158,1.8948974,108870.0,108860.0,0.01160209]
[1748391035370,1.8948974,108870.0,108860.0,0.01148209]
[1748391035570,1.8948974,108870.0,108860.0,0.01160209]
[1748391037164,1.8574769,108870.0,108860.0,0.01160209]
[1748391037370,1.89492034,108870.0,108860.0,0.01160209]
[1748391037774,1.93757765,108870.0,108860.0,9e-08]
[1748391037975,1.99462115,108870.0,108860.0,9e-08]
[1748391038581,0.1836687,108840.0,108830.0,0.36970896]
[1748391038873,1.06673139,108840.0,108830.0,0.36188856]
[1748391039086,1.16333139,108840.0,108830.0,0.13229676]
[1748391039270,1.16333139,108840.0,108830.0,0.31598236]
[1748391039478,1.16333139,108840.0,108830.0,0.31610236]
[1748391039776,1.16433139,108840.0,108830.0,0.35130236]
[1748391039977,1.16533139,108840.0,108830.0,0.35230236]
[1748391040178,1.16533139,108840.0,108830.0,0.38540236]
[1748391040570,1.16433139,108840.0,108830.0,0.38440236]
[1748391040876,1.16733139,108840.0,108830.0,0.38440236]
[1748391041081,1.16733139,108840.0,108830.0,0.20071676]
[1748391041986,1.17033139,108840.0,108830.0,0.2350781]
[1748391042483,1.17033139,108840.0,108830.0,0.4186438]
[1748391042780,1.17033139,108840.0,108830.0,0.37840246]
[1748391043185,1.17033139,108840.0,108830.0,0.19471676]
[1748391044380,1.17971813,108840.0,108830.0,0.19471676]
[1748391044575,1.17971813,108840.0,108830.0,0.37840236]
[1748391045283,1.17971813,108840.0,108830.0,0.19471676]
[1748391046383,1.17971813,108840.0,108830.0,0.37840236]
[1748391049886,1.17971813,108840.0,108830.0,0.38288445]
[1748391051975,1.17971813,108840.0,108830.0,0.42324579]
[1748391052170,1.21723065,108840.0,108830.0,0.38288445]
[1748391053372,1.21723065,108840.0,108830.0,0.41368445]
[1748391054382,1.21723839,108840.0,108830.0,0.41368445]
[1748391054574,1.21723839,108840.0,108830.0,0.45404579]
[1748391054773,1.17971813,108840.0,108830.0,0.45404579]
[1748391054986,1.17971813,108840.0,108830.0,0.36094579]
[1748391055689,1.17971813,108840.0,108830.0,0.39014579]
[1748391056284,1.08211813,108840.0,108830.0,0.39014579]
[1748391056576,1.15281405,108840.0,108830.0,0.39014579]
[1748391056782,1.15281405,108840.0,108830.0,0.45274579]
[1748391056968,1.18381405,108840.0,108830.0,0.45274579]
[1748391058483,1.08625405,108840.0,108830.0,0.45274579]
[1748391058684,1.18383037,108840.0,108830.0,0.45274579]
[1748391059281,1.08627037,108840.0,108830.0,0.45274579]
[1748391059784,1.18383037,108840.0,108830.0,0.45274579]
[1748391060481,1.08627037,108840.0,108830.0,0.45274579]
[1748391060687,1.18383037,108840.0,108830.0,0.45274579]
[1748391061291,1.18383037,108840.0,108830.0,0.87290579]
[1748391061583,1.18385836,108840.0,108830.0,0.87290579]
[1748391062082,1.18386075,108840.0,108830.0,0.87290579]
[1748391063275,1.21596075,108840.0,108830.0,0.87290579]
[1748391063482,1.21596075,108840.0,108830.0,0.7617655]
[1748391064086,1.21596075,108840.0,108830.0,0.76624759]
[1748391065286,1.57676075,108840.0,108830.0,0.07496343]
[1748391065472,1.61958604,108840.0,108830.0,0.04746985]
[1748391065780,1.61958604,108840.0,108830.0,0.04740997]
[1748391066186,1.61958604,108840.0,108830.0,0.04752997]
[1748391066382,1.61958604,108840.0,108830.0,0.04753222]
[1748391066794,1.61958604,108840.0,108830.0,0.04752808]
[1748391067086,1.61958604,108840.0,108830.0,0.03460209]
[1748391069887,1.53917813,108840.0,108830.0,0.03460209]
[1748391070091,1.61950431,108840.0,108830.0,0.03460209]
[1748391072194,1.55950431,108840.0,108830.0,0.04460209]
[1748391074491,1.55948563,108840.0,108830.0,0.04460209]
[1748391079495,1.19868563,108840.0,108830.0,0.04460209]
[1748391081289,1.33376671,108840.0,108830.0,0.04460209]
[1748391082894,1.33373318,108840.0,108830.0,0.04460209]
[1748391087198,1.25345921,108840.0,108830.0,0.04460209]
[1748391087398,1.33376557,108840.0,108830.0,0.04460209]
[1748391093706,1.25572799,108840.0,108830.0,0.04460209]
[1748391093911,1.39080475,108840.0,108830.0,0.17967885]
[1748391094612,1.34798667,108840.0,108830.0,0.17967885]
[1748391096006,1.34802895,108840.0,108830.0,0.17967885]
[1748391096211,1.34802895,108840.0,108830.0,0.04460209]
[1748391096712,1.39089756,108840.0,108830.0,0.04448209]
[1748391096919,1.52597432,108840.0,108830.0,0.04448209]
[1748391097305,1.48310571,108840.0,108830.0,0.04448209]
[1748391097710,1.52597421,108840.0,108830.0,0.04448209]
[1748391099314,1.52597421,108840.0,108830.0,0.01523419]
[1748391099519,1.48310571,108840.0,108830.0,0.01523419]
[1748391099712,1.48310571,108840.0,108830.0,0.01971628]
[1748391099914,1.48310571,108840.0,108830.0,0.01983628]
[1748391100317,1.4830999,108840.0,108830.0,0.01983628]
[1748391100617,1.4840999,108840.0,108830.0,0.02083628]
[1748391102111,1.4850999,108840.0,108830.0,0.02083628]
[1748391103609,1.57066516,108840.0,108830.0,0.02000008]
[1748391103817,1.57066516,108840.0,108830.0,0.02448217]
[1748391104712,1.5706471,108840.0,108830.0,0.02474358]
[1748391105914,1.48508184,108840.0,108830.0,0.02474358]
[1748391106418,0.1836857,108830.0,108820.0,0.00183781]
[1748391106614,1.27739222,108830.0,108820.0,0.08183781]
[1748391107011,1.27739222,108830.0,108820.0,0.05821371]
[1748391107216,1.27739222,108830.0,108820.0,0.07102341]
[1748391107414,1.27739222,108830.0,108820.0,0.07114341]
[1748391107623,1.28139222,108830.0,108820.0,0.07114341]
[1748391107828,1.28339222,108830.0,108820.0,0.07114341]
[1748391108016,1.80111222,108830.0,108820.0,0.07114341]
[1748391108323,1.80111222,108830.0,108820.0,0.07113822]
[1748391108527,1.80111222,108830.0,108820.0,0.05833371]
[1748391108918,1.80104524,108830.0,108820.0,0.05833371]
[1748391109118,1.28332524,108830.0,108820.0,0.05833371]
[1748391109420,1.80104524,108830.0,108820.0,0.05833371]
[1748391109931,1.38088524,108830.0,108820.0,0.0628158]
[1748391110222,1.81456307,108830.0,108820.0,0.0628158]
[1748391110417,1.39440307,108830.0,108820.0,0.0628158]
[1748391113230,1.3141232,108830.0,108820.0,0.0628158]
[1748391113431,1.39431921,108830.0,108820.0,0.0628158]
[1748391115027,1.25924245,108830.0,108820.0,0.0628158]
[1748391115328,1.39431921,108830.0,108820.0,0.0628158]
[1748391117626,1.39424731,108830.0,108820.0,0.0628158]
[1748391119129,1.33712709,108830.0,108820.0,0.0628158]
[1748391119426,1.75728709,108830.0,108820.0,0.0628158]
[1748391121028,1.15944298,108830.0,108820.0,0.0628158]
[1748391121231,1.75728267,108830.0,108820.0,0.19789256]
[1748391121532,1.75728267,108830.0,108820.0,0.0920158]
[1748391122033,1.75728267,108830.0,108820.0,0.0628158]
[1748391122034,1.67716298,108830.0,108820.0,0.0628158]
[1748391122228,1.75728677,108830.0,108820.0,0.0628158]
[1748391125637,1.81440699,108830.0,108820.0,0.0628158]
[1748391127230,1.29668699,108830.0,108820.0,0.0628158]
[1748391127431,1.81440699,108830.0,108820.0,0.0628158]
[1748391129238,1.81445767,108830.0,108820.0,0.0628158]
[1748391132039,1.81745767,108830.0,108820.0,0.0628158]
[1748391132238,1.81545767,108830.0,108820.0,0.0628158]
[1748391132437,1.82045767,108830.0,108820.0,0.0628158]
[1748391133531,1.81970807,108830.0,108820.0,0.0628158]
[1748391136044,1.6417951,108830.0,108820.0,0.0628158]
[1748391136231,1.77687186,108830.0,108820.0,0.0628158]
[1748391137140,1.72220917,108830.0,108820.0,0.0628158]
[1748391137435,0.1837025,108820.0,108810.0,0.04128033]
[1748391137737,1.40136369,108820.0,108810.0,0.06128033]
[1748391137938,1.32342869,108820.0,108810.0,0.06128033]
[1748391138526,1.21662424,108820.0,108810.0,0.19635709]
[1748391138834,1.36884693,108820.0,108810.0,0.19635709]
[1748391139035,1.36884693,108820.0,108810.0,0.28995709]
[1748391140029,1.37284693,108820.0,108810.0,0.28995709]
[1748391142148,1.37276649,108820.0,108810.0,0.28995709]
[1748391142441,1.23768973,108820.0,108810.0,0.28995709]
[1748391142744,1.37276649,108820.0,108810.0,0.28995709]
[1748391143038,1.23768973,108820.0,108810.0,0.28995709]
[1748391143240,1.37276649,108820.0,108810.0,0.28995709]
[1748391144844,1.14012973,108820.0,108810.0,0.47367639]
[1748391145141,1.37276649,108820.0,108810.0,0.28995709]
[1748391146347,1.37272932,108820.0,108810.0,0.28995709]
[1748391147746,1.37272932,108820.0,108810.0,0.15488033]
[1748391148043,1.37272932,108820.0,108810.0,0.28995709]
[1748391149143,1.27516932,108820.0,108810.0,0.28995709]
[1748391149332,1.37268932,108820.0,108810.0,0.28995709]
[1748391150641,1.37268785,108820.0,108810.0,0.28995709]
[1748391153334,1.37268785,108820.0,108810.0,0.15488033]
[1748391153538,1.37268785,108820.0,108810.0,0.22955709]
[1748391153737,1.50776461,108820.0,108810.0,0.09448033]
[1748391154350,1.50776461,108820.0,108810.0,0.06128033]
[1748391154544,1.50776461,108820.0,108810.0,0.06576242]
[1748391155034,1.50776551,108820.0,108810.0,0.06576242]
[1748391156435,0.1837194,108810.0,108800.0,0.8561454]
[1748391156638,0.46089125,108810.0,108800.0,0.9861454]
[1748391156841,0.46089125,108810.0,108800.0,0.9761454]
[1748391157747,0.46389125,108810.0,108800.0,0.9761454]
[1748391159044,0.46389125,108810.0,108800.0,0.95031836]
[1748391159243,0.46689125,108810.0,108800.0,0.95031836]
[1748391159554,0.46723362,108810.0,108800.0,0.95031836]
[1748391161240,0.46723362,108810.0,108800.0,0.8152416]
[1748391161241,0.82803362,108810.0,108800.0,0.8152416]
[1748391161442,0.82803362,108810.0,108800.0,0.95031836]
[1748391162339,0.69295686,108810.0,108800.0,1.08539512]
[1748391162541,0.69295686,108810.0,108800.0,0.34647676]
[1748391162747,0.82803362,108810.0,108800.0,0.95029286]
[1748391163051,0.82803362,108810.0,108800.0,0.95041286]
[1748391163745,1.12804066,108810.0,108800.0,0.95041286]
[1748391165755,1.12804066,108810.0,108800.0,0.67527676]
[1748391165949,1.12804066,108810.0,108800.0,0.67515676]
[1748391166249,1.12804066,108810.0,108800.0,0.67527676]
[1748391166947,1.12804066,108810.0,108800.0,0.85901286]
[1748391168157,1.12804987,108810.0,108800.0,0.85901286]
[1748391169749,1.12804987,108810.0,108800.0,0.86349495]
[1748391172450,1.09119616,108810.0,108800.0,0.86349495]
[1748391172645,1.12804855,108810.0,108800.0,0.86349495]
[1748391175846,1.12804855,108810.0,108800.0,0.89269495]
[1748391176356,1.12804855,108810.0,108800.0,0.86349495]
[1748391176557,1.12804855,108810.0,108800.0,0.90409333]
[1748391176755,1.12804855,108810.0,108800.0,0.76901657]
[1748391176946,1.12804799,108810.0,108800.0,0.90405333]
[1748391177357,0.99297123,108810.0,108800.0,0.90405333]
[1748391177565,1.12804799,108810.0,108800.0,0.90405333]
[1748391180359,1.18271068,108810.0,108800.0,0.90405333]
[1748391180755,1.14585885,108810.0,108800.0,0.90405333]
[1748391181061,1.18270899,108810.0,108800.0,0.90405333]
[1748391182043,1.18270899,108810.0,108800.0,0.93325333]
[1748391182245,1.18270927,108810.0,108800.0,0.93325333]
[1748391183964,1.14585885,108810.0,108800.0,0.96605333]